[Event "87th Spanish Championship 2022"]
[Site "Linares"]
[Date "2022.08.17"]
[Round "8.13"]
[White "Alvarez Fernandez, Enrique"]
[Black "Alonso Garcia, Aaron"]
[Result "0-1"]
[ECO "E13"]
[WhiteElo "2329"]
[BlackElo "2374"]
[Annotator "TA"]
[PlyCount "108"]
[EventDate "2022.08.11"]
[EventType "swiss"]
[EventCountry "ESP"]
[SourceTitle "playchess.com"]
[Source "ChessBase"]
[SourceQuality "1"]
[TimeControl "5400+30"]

{[%evp 26,108,-29,-28,-19,-20,-17,-20,-20,-23,-18,-39,-23,-35,-27,-62,-29,-95,-95,-94,-94,-92,-110,-108,-106,-101,-105,-99,-50,-96,-72,-94,-94,-94,-86,-83,-85,-85,-85,-103,-62,-159,-125,-158,-116,-116,-116,-116,-116,-116,-116,-116,-116,-1178,-1144,-470,-116,-983,-1164,-1150,-943,-910,-199,-199,0,-199,-164,-1445,-1311,-1169,-164,-1174,-1002,-29960,-29961,-29961,-29959,-29980,-29981,-29981,-29982,-29987,-29988,-29987,-29988]} 1. d4 {[%emt 0:00:03]} Nf6 {[%emt 0:01:24]} 2. c4 {[%emt 0:00:24]} e6 {[%emt 0:00:04]} 3. Nc3 {[%emt 0:00:35]} Bb4 {[%emt 0:00:05]} 4. Nf3 {[%emt 0:00:31]} b6 {[%emt 0:00:03]} 5. Bg5 {[%emt 0:01:16][%cal Bc1g5,Bg5h4,Bh4g3][%mdl 32]} h6 {[%emt 0:00:04]} 6. Bh4 {[%emt 0:00:28]} Bb7 {[%emt 0:00:56]} 7. e3 {[%emt 0:01:13]} g5 {[%emt 0:00:32]} 8. Bg3 {[%emt 0:00:11]} Ne4 {[%emt 0:00:02]} 9. Qc2 {[%emt 0:01:01]} d6 {[%emt 0:04:43]} 10. Bd3 {[%emt 0:01:47]} Bxc3+ {[%emt 0:00:26]} 11. bxc3 {[%emt 0:00:05]} f5 {[%emt 0:00:06]} 12. d5 {[%emt 0:02:58]} Nd7 {[%emt 0:01:16][%cal Bb8d7,Bd7c5,Bc5e6][%mdl 32]} 13. Bxe4 {[%emt 0:06:43]} fxe4 {[%emt 0:00:02]} 14. Qxe4 {[%emt 0:03:23]} Nc5 {[%emt 0:00:31] E13: Queen's Indian/Nimzo-Indian hybrid: 4 Nc3 Bb7 5 Bg5 h6 6 Bh4 Bb4.} 15. Qg6+ {[%emt 0:09:51]} Kd7 $1 {[%emt 0:00:01]} 16. Nd4 {[%emt 0:11:41][%cal Rd4e6]} Qg8 {[%emt 0:04:37] The position is equal.} 17. dxe6+ {[%emt 0:04:58]} Nxe6 {[%emt 0:00:02] [#]} 18. Qxg8 $146 {[%emt 0:03:12]} ({Predecessor:} 18. Qxe6+ Qxe6 19. Nxe6 Kxe6 20. f3 Ba6 21. Kf2 Bxc4 22. h4 Kd7 23. e4 Kc6 24. a3 {½-½ (41) Ruiz Jarabo,F (2285)-Canamas Soler,J (2289) ICCF email 2017}) 18... Raxg8 {[%emt 0:00:15]} 19. f3 {[%emt 0:02:26]} g4 {[%emt 0:11:18]} 20. Kf2 {[%emt 0:07:38]} h5 {[%emt 0:13:47]} 21. h4 {[%emt 0:02:34] Against Ng5} (21. Nxe6 $11 {remains equal.} Kxe6 22. h4) 21... gxf3 $17 {[%emt 0:02:59]} 22. gxf3 {[%emt 0:01:39] [#]} Rf8 $1 {[%emt 0:00:12] And now ...Nxd4 would win.} 23. Rhg1 {[%emt 0:07:48][%cal Og3f4]} Nxd4 {[%emt 0:06:38]} 24. cxd4 {[%emt 0:00:15]} Rxf3+ {[%emt 0:00:23]} 25. Ke2 {[%emt 0:00:05]} Re8 {[%emt 0:02:56]} 26. Bf2 {[%emt 0:00:15]} Rf7 {[%emt 0:01:07] Against Rg7} (26... Rf4 $17 {Hoping for ...Rxd4.} 27. Rg7+ Kc8) 27. Rg5 {[%emt 0:02:08]} (27. Bg3 $1 $15) 27... c5 {[%emt 0:08:13] Strongly threatening ...cxd4.} 28. dxc5 {[%emt 0:01:49]} Bf3+ {[%emt 0:00:59]} ({Reject} 28... bxc5 $6 29. Bg3 $11) 29. Kd2 {[%emt 0:01:32]} dxc5 {[%emt 0:00:07]} 30. Bg3 {[%emt 0:06:45]} Kc8 {[%emt 0:01:54]} 31. Bf4 {[%emt 0:02:20]} Rd7+ {[%emt 0:03:14]} 32. Ke1 {[%emt 0:00:08]} Bg4 {[%emt 0:02:59] Black is more active.} 33. Rd5 {[%emt 0:02:15]} (33. a4 $15) 33... Re4 {[%emt 0:00:21]} 34. Rxd7 {[%emt 0:02:58]} Bxd7 {[%emt 0:00:51][%mdl 4096] Endgame KRB-KRB} 35. Rc1 {[%emt 0:03:08]} Be6 {[%emt 0:00:07]} 36. Kd2 {[%emt 0:00:50]} Rxc4 {[%emt 0:00:38]} 37. Rxc4 {[%emt 0:01:05]} Bxc4 {[%emt 0:00:02] KB-KB} 38. a3 {[%emt 0:00:08]} Kd7 {[%emt 0:00:12] [#] ...b5 is the strong threat.} 39. Kc3 $2 {[%emt 0:03:03][%mdl 8192]} (39. Bh6 $17) 39... Bd5 {[%emt 0:00:17]} 40. Kd3 {[%emt 0:03:00]} Kc6 $2 {[%emt 0:00:02]} (40... b5 $19 {and Black stays clearly on top.} 41. e4 Bc4+ 42. Ke3 a5) 41. Bb8 $2 {[%emt 0:00:28][%mdl 8192]} (41. Bg5 $17) 41... a6 $19 {[%emt 0:00:01]} 42. e4 {[%emt 0:01:08]} Be6 {[%emt 0:00:56]} 43. Be5 {[%emt 0:01:26]} Kb5 $2 {[%emt 0:00:17]} (43... b5 44. Bc3 Kb6) 44. Bc7 {[%emt 0:00:15]} Kc6 $2 {[%emt 0:02:26]} ({Better is} 44... Bf7 $19 {White must now prevent ...Bg8.} 45. Bd8 Kc6) 45. Bd8 $2 {[%emt 0:00:10]} (45. Be5 $11 {and White has nothing to worry.}) 45... b5 {[%emt 0:04:26]} 46. Kc3 {[%emt 0:00:55] Against b4+} (46. Be7) 46... Bf7 {[%emt 0:00:01]} 47. Kd3 {[%emt 0:03:26]} Bg6 $2 {[%emt 0:00:39]} (47... b4 48. Bf6 Kb5) 48. Ke3 $2 {[%emt 0:00:10]} (48. Be7) 48... b4 {[%emt 0:00:50] Threatens to win with ...Kb5.} 49. axb4 {[%emt 0:00:15]} cxb4 {[%emt 0:00:01][%cal Bc5b4,Bb4b3][%mdl 32] Black mates.} 50. Kd4 {[%emt 0:00:14]} Kb5 {[%emt 0:00:01]} 51. e5 {[%emt 0:00:45]} a5 {[%emt 0:00:34][%cal Ba6a5,Ba5a4,Ba4a3][%mdl 32]} 52. e6 {[%emt 0:01:46]} a4 {[%emt 0:00:02]} 53. Bf6 {[%emt 0:00:43]} a3 {[%emt 0:00:10]} 54. e7 {[%emt 0:00:28]} b3 {[%emt 0:00:19] Weighted Error Value: White=0.98/Black=0.71} 0-1

[Event "87th Spanish Championship 2022"]
[Site "Linares"]
[Date "2022.08.17"]
[Round "8.14"]
[White "Alshameary Puente, Ismael"]
[Black "Medarde Santiago, Luis Marcos"]
[Result "1/2-1/2"]
[ECO "E65"]
[WhiteElo "2352"]
[BlackElo "2330"]
[Annotator "TA"]
[PlyCount "297"]
[EventDate "2022.08.11"]
[EventType "swiss"]
[EventCountry "ESP"]
[SourceTitle "playchess.com"]
[Source "ChessBase"]
[SourceQuality "1"]
[TimeControl "5400+30"]

{[%evp 43,297,-87,-89,-95,-87,-185,-185,-196,-196,-194,-123,-126,-124,-128,-128,-126,-125,-136,-139,-225,-207,-194,-172,-249,-237,-308,-308,-316,-307,-301,-239,-229,-107,-113,-115,-119,-87,-90,-60,-60,-60,-63,-35,-35,-35,-35,-35,-35,-35,-35,-35,-35,-35,-35,-35,-35,-35,-35,-35,-49,-42,-42,-42,-42,-42,-42,-42,-49,-42,-50,-50,-50,0,0,0,-50,-50,-50,-50,-57,-57,-57,-60,-64,-29,-29,-29,-29,-29,-29,-29,-29,-29,-29,-29,-29,-29,-29,-29,-30,-30,-30,-18,-18,-18,-18,-18,-18,-18,-18,-18,-18,-18,-18,-18,-18,-18,-18,-10,-18,-10,-10,-11,-18,-11,-18,-4,-4,0,-18,0,-18,-18,-18,-18,-18,-18,-18,0,0,0,-18,-18,-18,-18,-18,-18,-18,0,-18,-18,-18,-18,-18,-18,-18,-18,-18,-18,-18,-18,-18,-18,-18,-18,-18,-18,-18,-18,-18,-18,-18,-18,-18,-18,0,-18,-18,-18,-18,-18,-18,-18,-18,-18,-18,-18,-18,-8,-33,-18,-18,-18,-18,-18,-18,-18,-18,0,-18,-18,-18,-18,-18,-18,-18,0,0,0,0,0,0,0,0,0,0,0,0,0,0,0,0,0,0,0,0,0,0,0,0,0,0,0,0,0,0,0,0,0,0,0,0,0,0,0,0,0,0,0,0,0,0,0,0,0,0]} 1. d4 {[%emt 0:02:13]} Nf6 {[%emt 0:01:45]} 2. c4 {[%emt 0:00:07]} g6 {[%emt 0:00:08]} 3. Nf3 {[%emt 0:00:10]} Bg7 {[%emt 0:00:08]} 4. g3 {[%emt 0:00:11]} O-O {[%emt 0:00:10]} 5. Bg2 {[%emt 0:00:05]} d6 {[%emt 0:00:04]} 6. O-O {[%emt 0:00:07]} c5 {[%emt 0:00:07]} 7. Nc3 {[%emt 0:00:36]} Nc6 {[%emt 0:00:17]} 8. dxc5 {[%emt 0:01:03]} dxc5 {[%emt 0:00:04]} 9. Be3 {[%emt 0:00:05]} Be6 {[%emt 0:00:21]} 10. Nd2 {[%emt 0:31:12]} Nd4 {[%emt 0:30:31]} 11. Nb3 {[%emt 0:06:56]} Ng4 {[%emt 0:02:02]} 12. Bxd4 {[%emt 0:23:04]} cxd4 13. Nd5 {[%emt 0:00:22]} Bc8 {[%emt 0:20:13]} 14. h3 {[%emt 0:02:58]} Ne5 {[%emt 0:01:00]} 15. Nxd4 {[%emt 0:03:27]} Nxc4 {[%emt 0:01:19]} 16. Rc1 {[%emt 0:10:04]} Nb6 {[%emt 0:10:23]} 17. Nb5 {[%emt 0:03:06]} Nxd5 {[%emt 0:02:07]} 18. Qxd5 {[%emt 0:00:16]} Qxd5 {[%emt 0:00:26]} 19. Bxd5 {[%emt 0:00:02]} Bxh3 {[%emt 0:00:08]} 20. Rfd1 {[%emt 0:00:18]} a6 {[%emt 0:01:55]} 21. Nc3 {[%emt 0:04:16]} Rab8 {[%emt 0:00:57]} 22. Bf3 {[%emt 0:01:47]} Be6 {[%emt 0:05:53]} 23. Nd5 Bxb2 {[%emt 0:00:21]} 24. Rb1 {[%emt 0:01:35]} (24. Rc7 $17) 24... Ba3 $19 {[%emt 0:02:12]} 25. Nc7 {[%emt 0:01:30]} Bc4 {[%emt 0:04:00]} 26. Rd4 {[%emt 0:01:27] [#]} Bxa2 {[%emt 0:01:03]} ({Black should try} 26... b5 $1 $19 27. Nxa6 Rbd8) 27. Rxb7 $17 {[%emt 0:00:08]} Bd6 {[%emt 0:05:53]} 28. Nxa6 {[%emt 0:00:21]} Rxb7 {[%emt 0:02:02]} 29. Bxb7 {[%emt 0:00:01]} Be6 {[%emt 0:00:18]} 30. Bf3 {[%emt 0:00:46]} Rc8 {[%emt 0:00:25]} 31. Rd1 {[%emt 0:03:28]} (31. Nb4 $17 {keeps fighting.}) 31... Bc4 {[%emt 0:04:42]} 32. Ra1 {[%emt 0:00:02]} Kg7 {[%emt 0:00:58]} 33. Ra4 {[%emt 0:00:29]} (33. Bb7 $142 Rd8 34. Bf3) 33... Bb5 $19 {[%emt 0:00:35]} 34. Ra1 {[%emt 0:01:40]} Rc2 {[%emt 0:00:34]} 35. e3 {[%emt 0:00:41]} h5 {[%emt 0:00:38]} 36. Bg2 {[%emt 0:00:37]} Kf6 {[%emt 0:01:08]} 37. Nb4 {[%emt 0:01:52]} Rd2 {[%emt 0:02:18]} (37... Bxb4 $19 {and Black stays clearly on top.} 38. Rb1 {[#]} Bc3 $1 39. Rxb5 Be1) 38. Nd5+ $17 {[%emt 0:00:24]} Kg7 {[%emt 0:00:08]} 39. Nc3 {[%emt 0:01:43]} Bd7 {[%emt 0:02:11]} 40. Ne4 {[%emt 0:00:12]} Rb2 {[%emt 0:00:10]} 41. Nxd6 {[%emt 0:00:48]} exd6 {[%emt 0:00:01]} 42. Bd5 {[%emt 0:00:26]} Rd2 {[%emt 0:01:12]} 43. Ra7 {[%emt 0:00:30]} Rxd5 {[%emt 0:00:35]} 44. Rxd7 {[%emt 0:00:02]} Kf6 {[%emt 0:00:05]} 45. Kg2 {[%emt 0:00:06]} Ke6 {[%emt 0:00:05]} 46. Ra7 {[%emt 0:00:07]} Rb5 {[%emt 0:00:18]} 47. Ra8 {[%emt 0:00:43]} Kf5 {[%emt 0:00:24]} 48. Rd8 {[%emt 0:00:54]} Rb6 {[%emt 0:00:51]} 49. Kf3 {[%emt 0:00:12]} Ke6 {[%emt 0:00:16]} 50. Re8+ {[%emt 0:00:37]} Kf6 {[%emt 0:00:01]} 51. Kg2 {[%emt 0:00:40]} Rb5 {[%emt 0:00:06]} 52. Kf3 {[%emt 0:00:17]} Rf5+ {[%emt 0:00:01]} 53. Kg2 {[%emt 0:00:01]} Re5 {[%emt 0:00:08]} 54. Rd8 {[%emt 0:00:12]} Ke7 {[%emt 0:00:02]} 55. Ra8 {[%emt 0:00:06]} Rf5 {[%emt 0:00:05]} 56. Ra7+ {[%emt 0:01:23]} Ke6 {[%emt 0:00:02]} 57. Rb7 {[%emt 0:01:11]} Ke5 {[%emt 0:00:18]} 58. Re7+ {[%emt 0:00:06]} Kf6 {[%emt 0:00:13]} 59. Re8 $1 {[%emt 0:00:08]} Rd5 {[%emt 0:00:14]} 60. Kf3 {[%emt 0:00:11]} Ra5 {[%emt 0:00:26]} 61. Rd8 {[%emt 0:00:32]} Ke7 {[%emt 0:00:29]} 62. Rb8 {[%emt 0:00:05]} Ra4 {[%emt 0:00:04]} 63. Rc8 {[%emt 0:01:17]} h4 {[%emt 0:00:12]} 64. gxh4 {[%emt 0:00:05]} Rxh4 {[%emt 0:00:04]} 65. Ra8 {[%emt 0:00:11]} Rb4 {[%emt 0:00:06]} 66. Kg3 {[%emt 0:00:09]} Rb3 {[%emt 0:00:15]} 67. Kf4 {[%emt 0:00:53]} Ke6 {[%emt 0:00:05]} 68. Re8+ {[%emt 0:00:05]} Kf6 {[%emt 0:00:05]} 69. Rd8 {[%emt 0:00:13]} Rb4+ {[%emt 0:00:05]} 70. Kf3 {[%emt 0:00:13]} Ke6 {[%emt 0:00:12]} 71. Re8+ {[%emt 0:00:14]} Kf5 {[%emt 0:00:03]} 72. Rf8 {[%emt 0:00:27]} f6 {[%emt 0:00:09]} 73. Rd8 {[%emt 0:01:28]} Ke6 {[%emt 0:00:08]} 74. Re8+ {[%emt 0:00:15]} Kf7 {[%emt 0:00:03]} 75. Rd8 {[%emt 0:00:13]} Ke7 {[%emt 0:00:05]} 76. Rg8 {[%emt 0:00:26]} g5 {[%emt 0:00:02]} 77. Kg3 {[%emt 0:00:19]} Ke6 {[%emt 0:00:09]} 78. Re8+ {[%emt 0:00:21]} Kf5 {[%emt 0:00:21]} 79. Rd8 {[%emt 0:00:15]} Rb6 {[%emt 0:00:07]} 80. Re8 {[%emt 0:00:21]} d5 {[%emt 0:00:28]} 81. Kf3 {[%emt 0:00:45]} Rb1 {[%emt 0:00:28]} 82. Rd8 {[%emt 0:00:36]} Rb5 {[%emt 0:01:06]} 83. Re8 {[%emt 0:00:26]} Rb6 {[%emt 0:00:18]} 84. Rd8 {[%emt 0:00:58]} Ke5 {[%emt 0:00:01]} 85. Re8+ {[%emt 0:00:21]} Re6 {[%emt 0:00:03]} 86. Rd8 {[%emt 0:00:50]} Rd6 {[%emt 0:00:07]} 87. Re8+ {[%emt 0:00:03]} Kf5 {[%emt 0:00:05]} 88. Kg3 {[%emt 0:00:16]} d4 {[%emt 0:00:49]} 89. exd4 {[%emt 0:00:02]} Rxd4 {[%emt 0:00:06]} 90. Ra8 {[%emt 0:02:12]} Ke5 {[%emt 0:01:17]} 91. Re8+ {[%emt 0:00:35]} Kf5 {[%emt 0:00:01]} 92. Ra8 {[%emt 0:00:01]} Kg6 {[%emt 0:00:23]} 93. Rg8+ {[%emt 0:00:55]} Kf7 {[%emt 0:00:10]} 94. Ra8 {[%emt 0:00:01]} Rb4 {[%emt 0:00:08]} 95. Ra6 {[%emt 0:00:28]} Rd4 {[%emt 0:00:26]} 96. Rb6 {[%emt 0:01:12]} Ke7 {[%emt 0:00:02]} 97. Ra6 {[%emt 0:00:20]} Re4 {[%emt 0:00:10]} 98. Rb6 {[%emt 0:00:36]} Kf7 {[%emt 0:00:50]} 99. Ra6 {[%emt 0:00:09]} Rc4 {[%emt 0:00:16]} 100. Rb6 {[%emt 0:00:13]} f5 {[%emt 0:00:42]} 101. Ra6 {[%emt 0:00:58]} Rc3+ {[%emt 0:00:10]} 102. Kg2 {[%emt 0:00:02]} Rc1 {[%emt 0:00:37]} 103. Kg3 {[%emt 0:00:38]} Rg1+ {[%emt 0:00:16]} 104. Kf3 {[%emt 0:00:29]} Re1 {[%emt 0:00:08]} 105. Kg3 {[%emt 0:00:12]} Re6 {[%emt 0:00:10]} 106. Ra5 {[%emt 0:00:46]} Kg6 {[%emt 0:00:08]} 107. Ra8 {[%emt 0:00:10]} Re7 {[%emt 0:00:28]} 108. Rg8+ {[%emt 0:00:51]} Kf6 {[%emt 0:00:13]} 109. Rf8+ {[%emt 0:00:37]} Rf7 {[%emt 0:00:05]} 110. Rg8 {[%emt 0:00:27]} Ra7 {[%emt 0:00:09]} 111. Rf8+ {[%emt 0:00:11]} Ke6 {[%emt 0:00:08]} 112. Re8+ {[%emt 0:00:42]} Kf7 {[%emt 0:00:03]} 113. Rb8 {[%emt 0:00:07]} Ra3+ {[%emt 0:00:05]} 114. Kg2 {[%emt 0:00:02]} Kg6 {[%emt 0:00:12]} 115. Rg8+ Kh5 {[%emt 0:00:23]} 116. Rb8 {[%emt 0:01:28]} Kg4 {[%emt 0:00:17]} 117. Rb4+ {[%emt 0:00:41]} f4 {[%emt 0:00:30]} 118. Rb8 {[%emt 0:01:11]} Rc3 {[%emt 0:01:07]} 119. Ra8 {[%emt 0:00:01]} Rc2 {[%emt 0:00:39]} 120. Rf8 {[%emt 0:00:18]} Rc3 {[%emt 0:00:42]} 121. Ra8 {[%emt 0:00:09]} Rc7 {[%emt 0:00:46]} 122. Ra3 {[%emt 0:00:48]} Rf7 {[%emt 0:00:27]} 123. Ra4 {[%emt 0:00:34]} Kh4 {[%emt 0:00:20]} 124. Ra3 {[%emt 0:01:55]} g4 {[%emt 0:00:09]} 125. Ra8 {[%emt 0:00:31]} Kg5 {[%emt 0:00:50]} 126. Ra5+ {[%emt 0:00:14]} Rf5 {[%emt 0:00:25]} 127. Ra8 {[%emt 0:00:05]} Kh4 {[%emt 0:00:12]} 128. Rh8+ {[%emt 0:01:10]} Rh5 {[%emt 0:00:01]} 129. Rg8 {[%emt 0:00:01]} Rh7 {[%emt 0:00:31]} 130. Kh2 {[%emt 0:00:30]} Ra7 {[%emt 0:00:09]} 131. Kg2 {[%emt 0:01:13]} f3+ {[%emt 0:00:21]} 132. Kh2 {[%emt 0:00:08]} Ra1 {[%emt 0:00:03]} 133. Rh8+ {[%emt 0:01:28]} Kg5 {[%emt 0:00:01]} 134. Rg8+ {[%emt 0:00:01]} Kf5 {[%emt 0:00:16]} 135. Rf8+ {[%emt 0:00:05]} Ke4 {[%emt 0:00:18]} 136. Rg8 {[%emt 0:01:24]} Kd3 {[%emt 0:00:33]} 137. Rb8 {[%emt 0:00:57]} Rf1 {[%emt 0:00:39]} (137... Rd1 $5 138. Re8 Rf1 $11) 138. Rb2 $1 {[%emt 0:00:41]} Rd1 {[%emt 0:00:20]} 139. Kg3 {[%emt 0:00:16]} Rg1+ {[%emt 0:00:10]} 140. Kf4 {[%emt 0:00:31]} Rg2 {[%emt 0:00:20]} 141. Ra2 {[%emt 0:00:07]} Kc3 {[%emt 0:00:09]} 142. Ke3 {[%emt 0:00:30]} Rg1 {[%emt 0:00:58]} 143. Ra3+ {[%emt 0:00:14]} Kb4 {[%emt 0:00:10]} 144. Ra8 {[%emt 0:00:16]} Kc5 {[%emt 0:01:03]} 145. Rg8 {[%emt 0:00:43]} Kd5 {[%emt 0:00:28]} 146. Rg5+ {[%emt 0:00:24]} Ke6 {[%emt 0:00:06]} 147. Kf4 {[%emt 0:00:11]} Rg2 {[%emt 0:00:16]} 148. Rxg4 {[%emt 0:00:11]} Rxf2 {[%emt 0:00:21]} 149. Ke4 1/2-1/2

[Event "87th Spanish Championship 2022"]
[Site "Linares"]
[Date "2022.08.17"]
[Round "8.15"]
[White "Lin, Yingrui"]
[Black "Macias Pino, Diego"]
[Result "1-0"]
[ECO "A20"]
[WhiteElo "2314"]
[BlackElo "2355"]
[Annotator "TA"]
[PlyCount "127"]
[EventDate "2022.08.11"]
[EventType "swiss"]
[EventCountry "ESP"]
[SourceTitle "playchess.com"]
[Source "ChessBase"]
[SourceQuality "1"]
[TimeControl "5400+30"]

{[%evp 12,127,6,2,6,8,20,-12,37,27,39,32,64,27,50,50,71,39,80,77,75,26,66,31,53,53,54,0,116,111,287,261,337,169,171,163,542,537,542,520,512,510,854,418,395,385,406,397,391,375,489,471,526,502,486,458,431,328,396,346,841,825,786,792,791,789,764,586,855,817,848,807,860,852,833,829,775,723,1278,1120,3512,2482,2964,2770,2216,2043,1308,1195,5093,5069,5202,2625,29970,29971,29966,29965,29976,29976,29978,29976,29985,29981,29981,29980,29980,0,29981,29982,29982,29982,29982,29983,29983,29984,29985,29986,29986,29987]} 1. c4 {[%emt 0:00:05]} e5 {[%emt 0:00:03]} 2. g3 {[%emt 0:00:17]} d6 {[%emt 0:00:36]} 3. Bg2 {[%emt 0:00:20]} f5 {[%emt 0:00:02]} 4. d4 {[%emt 0:02:01]} Be7 {[%emt 0:01:54]} 5. Nc3 {[%emt 0:07:02]} Nf6 {[%emt 0:00:19]} 6. e3 {[%emt 0:04:42]} O-O {[%emt 0:02:39]} 7. Nge2 {[%emt 0:00:49]} c6 {[%emt 0:00:53] A21: English Opening: 1...e5 2 Nc3.} 8. O-O {[%emt 0:10:21]} Qe8 {[%emt 0:00:57]} 9. c5 {[%emt 0:02:43]} d5 {[%emt 0:11:31]} (9... e4 $11) 10. dxe5 $14 {[%emt 0:02:05]} Nfd7 {[%emt 0:00:48]} 11. f4 {[%emt 0:01:06]} Nxc5 {[%emt 0:01:35]} 12. Nd4 {[%emt 0:05:23] [#]} (12. b4 $5 {[%cal Rb4c5]} Ne6 13. b5 $14) 12... a5 $146 {[%emt 0:01:47]} ({Predecessor:} 12... Nba6 13. a3 Nc7 14. b4 N5e6 15. Qd3 g6 16. Bd2 Qf7 17. Rfc1 Rd8 18. Na4 Qf8 {½-½ (46) Kaspret,G (2318)-Sirnik,B (2156) Ljubljana 2001}) 13. b3 {[%emt 0:08:11]} Kh8 {[%emt 0:02:28]} 14. Bb2 {[%emt 0:07:01]} Nbd7 {[%emt 0:11:21]} 15. Qc2 {[%emt 0:13:44]} Nb6 {[%emt 0:01:26]} 16. Rae1 {[%emt 0:05:59]} (16. Ba3 $16) 16... h5 {[%emt 0:10:52]} 17. Bf3 {[%emt 0:03:17] White is more active.} Ne4 {[%emt 0:01:44]} 18. Qe2 {[%emt 0:03:49]} g6 {[%emt 0:02:46]} 19. Bxe4 {[%emt 0:00:46]} (19. a4 $14) 19... fxe4 {[%emt 0:14:07]} (19... dxe4 $11 {keeps the balance.} 20. Qc2 Kh7) 20. e6 $36 {[%emt 0:03:49][%cal Od4b5][%mdl 2048] White is on the roll. White leaves nothing to chance now.} Bf6 $2 {[%emt 0:01:30] [#]} (20... Kh7 $16 {keeps fighting.}) 21. f5 $1 $18 {[%emt 0:00:08] Black must now prevent fxg6.} Bxd4 {[%emt 0:03:03]} 22. Na4 {[%emt 0:05:25]} (22. exd4 gxf5 23. Ba3 Rf6 $11) (22. fxg6 $142 Rxf1+ 23. Rxf1 Qxg6 24. Na4) 22... Nxa4 {[%emt 0:04:31]} 23. Bxd4+ {[%emt 0:00:07]} Kh7 $2 {[%emt 0:02:39] [#]} (23... Kg8) 24. fxg6+ $1 {[%emt 0:00:36]} (24. bxa4 Rxf5 25. Rb1 (25. Rxf5 gxf5 26. Ba1 d4 $11) 25... Rxf1+ 26. Qxf1 Qe7 $14) 24... Kxg6 {[%emt 0:00:17][%cal Oc8e6]} 25. Rxf8 {[%emt 0:00:09]} ({Weaker is} 25. bxa4 Bxe6 26. Rxf8 Qxf8 $18) 25... Qxf8 {[%emt 0:00:03]} 26. Rf1 {[%emt 0:00:49]} Qe7 {[%emt 0:00:29]} (26... Bxe6 $142 27. Rxf8 Rxf8) 27. Rf6+ {[%emt 0:00:56]} ({Not} 27. bxa4 Bxe6 28. Rf6+ Qxf6 29. Bxf6 Kxf6 30. Qxh5 Rf8 31. Qh6+ Ke7 32. Qg7+ Rf7 $18) (27. Rf7 $142 Qxf7 28. exf7) 27... Qxf6 {[%emt 0:00:07]} 28. Bxf6 {[%emt 0:00:01] Dancing on a razor blade.} Kxf6 {[%emt 0:04:52]} 29. bxa4 {[%emt 0:00:06]} Bxe6 {[%emt 0:01:10][%mdl 4096] Endgame KQ-KRB} 30. Qb2+ {[%emt 0:00:46]} Kf5 {[%emt 0:00:55]} 31. Qxb7 {[%emt 0:00:23]} Rc8 {[%emt 0:00:08]} 32. Qg7 {[%emt 0:01:05]} Rg8 {[%emt 0:01:11]} 33. Qc7 {[%emt 0:01:42]} Rc8 {[%emt 0:01:13]} 34. Qe7 {[%emt 0:01:24]} c5 {[%emt 0:00:53]} 35. Qg7 {[%emt 0:01:33] Against d4. aiming for h3.} c4 $2 {[%emt 0:02:41]} (35... Rg8 36. Qh6 Bf7 37. Qf4+ Ke6) 36. h3 {[%emt 0:00:16]} Bg8 {[%emt 0:00:55]} 37. g4+ {[%emt 0:00:18][%cal Bg3g4,Bg4h5,Bh5h6][%mdl 32]} Ke6 {[%emt 0:00:01]} 38. gxh5 {[%emt 0:00:46] Intending Qg4+ and mate.} Kd6 {[%emt 0:00:31]} 39. Qc3 {[%emt 0:01:13]} Be6 {[%emt 0:01:19]} 40. h6 {[%emt 0:00:23] And now h7 would win.} Rc7 {[%emt 0:00:01]} 41. Kh2 {[%emt 0:00:20]} Rh7 {[%emt 0:00:37]} 42. Qf6 {[%emt 0:01:57]} c3 {[%emt 0:01:41]} 43. Qxc3 {[%emt 0:00:11]} Rxh6 {[%emt 0:00:01]} 44. Qxa5 {[%emt 0:00:01] Threatens to win with Qd8+.} Rxh3+ {[%emt 0:00:33]} 45. Kg2 {[%emt 0:00:01]} Rf3 {[%emt 0:00:36]} 46. Qb6+ {[%emt 0:00:16]} Ke5 {[%emt 0:00:02]} 47. Qd4+ {[%emt 0:00:29]} Kd6 {[%emt 0:01:30]} 48. a5 {[%emt 0:00:45]} Bh3+ {[%emt 0:00:15]} 49. Kh2 {[%emt 0:00:08]} Bf1 {[%emt 0:00:17]} 50. a4 {[%emt 0:00:56][%cal Ba2a4,Ba4a5,Ba5a6][%mdl 32]} Bc4 {[%emt 0:04:25]} 51. a6 {[%emt 0:00:44] Threatening mate with Qb6+.} Bxa6 {[%emt 0:00:17]} 52. Qb6+ {[%emt 0:00:05]} Ke5 {[%emt 0:00:05]} 53. Qxa6 {[%emt 0:00:31]} Rxe3 {[%emt 0:00:01] KQ-KR} 54. a5 {[%emt 0:00:16]} Ra3 {[%emt 0:01:40]} 55. Qa7 {[%emt 0:00:58]} Kf4 {[%emt 0:03:55]} 56. Qf2+ {[%emt 0:05:03]} Kg4 {[%emt 0:00:41]} 57. Qg2+ {[%emt 0:00:27]} Kh4 {[%emt 0:00:33]} 58. Qf2+ {[%emt 0:00:08]} Kg4 {[%emt 0:00:13]} 59. a6 {[%emt 0:00:38] White mates.} e3 {[%emt 0:01:09]} 60. Qg2+ {[%emt 0:00:32]} Kf4 {[%emt 0:00:12]} 61. Qxd5 {[%emt 0:00:24]} e2 {[%emt 0:01:03]} 62. Qd6+ {[%emt 0:00:06]} Kg4 {[%emt 0:00:26]} 63. Qb4+ {[%emt 0:00:17]} Kf5 {[%emt 0:00:20]} 64. Qb5+ {[%emt 0:00:19] Weighted Error Value: White=0.30/Black=0.56} 1-0